[Event "Cracovia Festival-A 2023"]
[Site "Krakow"]
[Date "2023.12.27"]
[Round "1.21"]
[White "Baumegger, Siegfried"]
[Black "Kovalevsky, Stanislav"]
[Result "1-0"]
[ECO "A06"]
[WhiteElo "2388"]
[BlackElo "2163"]
[Annotator "RC"]
[PlyCount "105"]
[EventDate "2023.12.24"]
[EventType "swiss"]
[EventCountry "POL"]
[SourceTitle "playchess.com"]
[Source "ChessBase"]
[SourceQuality "1"]
[TimeControl "40/5400+30:1800+30"]

1. Nf3 {[%emt 0:00:26]} d5 {[%emt 0:00:04]} 2. g3 {[%emt 0:02:31]} Nf6 {[%emt 0:00:05]} 3. Bg2 {[%emt 0:00:09]} g6 {[%emt 0:02:20]} 4. c4 {[%emt 0:02:26]} c6 {[%emt 0:01:45]} 5. b3 {[%emt 0:03:58]} Bg7 {[%emt 0:06:23]} 6. Bb2 {[%emt 0:00:50]} O-O {[%emt 0:00:07]} 7. O-O {[%emt 0:00:39]} a5 {[%emt 0:09:26]} 8. Nc3 {[%emt 0:08:51]} d4 {[%emt 0:24:42]} 9. Na4 {[%emt 0:03:15]} Ng4 {[%emt 0:04:52]} 10. h3 {[%emt 0:11:13]} Nh6 {[%emt 0:00:10]} 11. c5 {[%emt 0:00:42]} e5 {[%emt 0:03:15]} 12. e3 {[%emt 0:09:45]} Be6 {[%emt 0:07:42]} 13. exd4 {[%emt 0:02:58]} exd4 {[%emt 0:00:08]} 14. d3 {[%emt 0:05:38]} Na6 {[%emt 0:05:58]} 15. Qd2 {[%emt 0:03:20]} Ra7 {[%emt 0:06:35]} 16. Ng5 {[%emt 0:29:50]} Bd5 {[%emt 0:05:25]} 17. Bxd5 {[%emt 0:02:01]} Qxd5 {[%emt 0:00:03]} 18. Rfe1 {[%emt 0:01:12]} Nf5 {[%emt 0:03:41]} 19. Ne4 {[%emt 0:00:30]} Nc7 {[%emt 0:01:59]} 20. Nb6 {[%emt 0:01:12]} Qd8 {[%emt 0:00:07]} 21. Qc2 {[%emt 0:03:49]} h5 {[%emt 0:04:11]} 22. Re2 {[%emt 0:00:52]} Ne6 {[%emt 0:01:31]} 23. Rae1 {[%emt 0:01:39]} h4 {[%emt 0:07:24]} 24. Nc4 {[%emt 0:01:14]} hxg3 {[%emt 0:01:00]} 25. fxg3 {[%emt 0:00:09]} Ng5 {[%emt 0:00:48]} 26. Kg2 {[%emt 0:02:04]} Qc7 {[%emt 0:02:49]} 27. Ned6 {[%emt 0:00:52]} Qd7 {[%emt 0:00:02]} 28. g4 {[%emt 0:00:43]} Nh4+ {[%emt 0:00:17]} 29. Kg3 {[%emt 0:00:30]} Ngf3 {[%emt 0:00:33]} 30. Rf1 {[%emt 0:01:04]} f5 {[%emt 0:00:24]} 31. Rxf3 {[%emt 0:00:50]} Nxf3 {[%emt 0:00:05]} 32. Kxf3 {[%emt 0:00:04]} fxg4+ 33. Kg3 {[%emt 0:00:52]} Rf3+ {[%emt 0:01:44]} 34. Kg2 {[%emt 0:00:07]} Rxh3 {[%emt 0:00:32]} 35. Nd2 {[%emt 0:00:47]} Ra8 {[%emt 0:00:55]} 36. Qc4+ {[%emt 0:00:10]} Kh7 {[%emt 0:00:30]} 37. N2e4 {[%emt 0:00:28]} Qd8 {[%emt 0:00:47]} 38. Nf7 {[%emt 0:00:25]} Qd5 {[%emt 0:00:38]} 39. Nfg5+ {[%emt 0:00:52]} Kh8 {[%emt 0:00:09]} 40. Nxh3 {[%emt 0:00:00]} gxh3+ {[%emt 0:00:00]} 41. Kh2 {[%emt 0:16:05]} Be5+ {[%emt 0:20:30]} 42. Kh1 {[%emt 0:00:56]} Rf8 {[%emt 0:00:16]} 43. Qc1 {[%emt 0:02:49]} g5 {[%emt 0:06:47]} 44. Qe1 {[%emt 0:05:18]} Rf3 {[%emt 0:01:45]} 45. Bc1 {[%emt 0:05:26]} Rxd3 {[%emt 0:01:23]} 46. Bxg5 {[%emt 0:00:50]} Rf3 {[%emt 0:01:40]} 47. Qh4+ {[%emt 0:00:41]} Kg8 {[%emt 0:00:03]} 48. Re1 {[%emt 0:00:33]} d3 {[%emt 0:00:56]} 49. Qg4 {[%emt 0:00:53]} Rg3 {[%emt 0:00:32]} 50. Qf5 {[%emt 0:00:23]} Kg7 {[%emt 0:01:03]} 51. Rf1 {[%emt 0:00:38]} Rg2 {[%emt 0:01:17]} 52. Qf8+ {[%emt 0:00:58]} Kh7 {[%emt 0:00:16]} 53. Qh6+ 1-0

[Event "Cracovia Festival-A 2023"]
[Site "Krakow"]
[Date "2023.12.27"]
[Round "1.22"]
[White "Valiyev, Shahin"]
[Black "Turski, Bartlomiej"]
[Result "1-0"]
[ECO "B56"]
[WhiteElo "2158"]
[BlackElo "2380"]
[Annotator "RC"]
[PlyCount "41"]
[EventDate "2023.12.24"]
[EventType "swiss"]
[EventCountry "POL"]
[SourceTitle "playchess.com"]
[Source "ChessBase"]
[SourceQuality "1"]
[TimeControl "40/5400+30:1800+30"]

1. e4 {[%emt 0:00:39]} c5 {[%emt 0:00:06]} 2. Nf3 {[%emt 0:00:23]} Nc6 {[%emt 0:00:05]} 3. d4 {[%emt 0:00:21]} cxd4 {[%emt 0:00:04]} 4. Nxd4 {[%emt 0:00:14]} Nf6 {[%emt 0:00:05]} 5. Nc3 {[%emt 0:00:23]} d6 {[%emt 0:00:04]} 6. f3 {[%emt 0:02:11]} e5 {[%emt 0:00:05]} 7. Nb3 {[%emt 0:00:21]} Be7 {[%emt 0:00:05]} 8. Be3 {[%emt 0:00:55]} O-O {[%emt 0:00:15]} 9. Qd2 {[%emt 0:00:48]} a5 {[%emt 0:00:04]} 10. Bb5 {[%emt 0:04:02]} Be6 {[%emt 0:00:05]} 11. O-O-O {[%emt 0:03:32]} Qb8 {[%emt 0:00:11]} 12. Kb1 {[%emt 0:07:17]} Rc8 {[%emt 0:00:10]} 13. Qf2 {[%emt 0:16:56]} a4 {[%emt 0:04:26]} 14. Bxa4 {[%emt 0:11:37]} Nb4 {[%emt 0:04:03]} 15. a3 {[%emt 0:06:34]} Rxa4 {[%emt 0:16:54]} 16. Nxa4 {[%emt 0:10:02]} Rxc2 {[%emt 0:01:23]} 17. Qe1 {[%emt 0:04:27]} Qe8 {[%emt 0:46:16]} 18. Nb6 {[%emt 0:11:12]} Rxg2 {[%emt 0:07:49]} 19. Qxb4 {[%emt 0:01:11]} d5 {[%emt 0:00:16]} 20. Bc5 {[%emt 0:00:33]} Bxc5 {[%emt 0:00:08]} 21. Nxc5 {[%emt 0:00:26]} 1-0

[Event "Cracovia Festival-A 2023"]
[Site "Krakow"]
[Date "2023.12.27"]
[Round "1.23"]
[White "Karolczuk, Iwo"]
[Black "Pyrig, Roman"]
[Result "1-0"]
[ECO "D02"]
[WhiteElo "2365"]
[BlackElo "2154"]
[Annotator "RC"]
[PlyCount "83"]
[EventDate "2023.12.24"]
[EventType "swiss"]
[EventCountry "POL"]
[SourceTitle "playchess.com"]
[Source "ChessBase"]
[SourceQuality "1"]
[TimeControl "40/5400+30:1800+30"]

1. d4 {[%emt 0:00:03]} d5 {[%emt 0:05:44]} 2. Nf3 {[%emt 0:00:08]} Nf6 {[%emt 0:00:20]} 3. c4 {[%emt 0:00:05]} e6 {[%emt 0:00:09]} 4. g3 {[%emt 0:00:13]} Bb4+ {[%emt 0:00:09]} 5. Bd2 {[%emt 0:00:31]} Be7 {[%emt 0:00:05]} 6. Bg2 {[%emt 0:00:41]} O-O {[%emt 0:00:12]} 7. O-O {[%emt 0:00:12]} c6 {[%emt 0:00:18]} 8. b3 {[%emt 0:08:02]} b6 {[%emt 0:08:02]} 9. Bc3 {[%emt 0:06:06]} Nbd7 {[%emt 0:11:32]} 10. Nbd2 {[%emt 0:03:12]} Bb7 {[%emt 0:01:08]} 11. Rc1 {[%emt 0:06:43]} c5 {[%emt 0:11:01]} 12. e3 {[%emt 0:08:51]} Rc8 {[%emt 0:06:02]} 13. Qe2 {[%emt 0:04:25]} cxd4 {[%emt 0:01:12]} 14. Nxd4 {[%emt 0:02:09]} Ba6 {[%emt 0:10:06]} 15. Rfd1 {[%emt 0:16:41]} Ba3 {[%emt 0:02:28]} 16. Rb1 {[%emt 0:02:47]} Qe7 {[%emt 0:34:21]} 17. e4 {[%emt 0:02:32]} dxc4 {[%emt 0:01:08]} 18. b4 {[%emt 0:01:16]} Nc5 {[%emt 0:03:02]} 19. bxc5 {[%emt 0:08:32]} Bxc5 {[%emt 0:00:02]} 20. Nb5 {[%emt 0:01:08]} Bxb5 {[%emt 0:01:02]} 21. Rxb5 {[%emt 0:00:06]} a6 {[%emt 0:00:01]} 22. Rbb1 {[%emt 0:04:14]} b5 {[%emt 0:00:01]} 23. a4 {[%emt 0:00:19]} Rfd8 {[%emt 0:03:23]} 24. axb5 {[%emt 0:01:18]} axb5 {[%emt 0:00:01]} 25. Rxb5 {[%emt 0:03:34]} Rd3 {[%emt 0:00:29]} 26. Rc1 {[%emt 0:02:13]} Qd7 {[%emt 0:00:48]} 27. Rbb1 {[%emt 0:00:17]} e5 {[%emt 0:00:29]} 28. Bf3 {[%emt 0:05:18]} Ba7 {[%emt 0:00:33]} 29. Rc2 {[%emt 0:01:25]} Qa4 {[%emt 0:00:41]} 30. Rbc1 {[%emt 0:00:52]} Qb5 {[%emt 0:00:16]} 31. Ba1 {[%emt 0:01:40]} h5 {[%emt 0:00:41]} 32. Nxc4 {[%emt 0:00:57]} Rdd8 {[%emt 0:00:21]} 33. Nxe5 {[%emt 0:04:13]} Rxc2 {[%emt 0:00:03]} 34. Qxc2 {[%emt 0:00:14]} h4 {[%emt 0:00:34]} 35. Nc6 {[%emt 0:00:17]} hxg3 {[%emt 0:00:04]} 36. hxg3 {[%emt 0:00:06]} Rd7 {[%emt 0:01:31]} 37. Nxa7 {[%emt 0:00:09]} Rxa7 {[%emt 0:00:01]} 38. Bxf6 {[%emt 0:00:08]} gxf6 {[%emt 0:00:10]} 39. Qc8+ {[%emt 0:00:09]} Kg7 {[%emt 0:00:05]} 40. Qg4+ {[%emt 0:00:00]} Kf8 {[%emt 0:00:00]} 41. Qh5 {[%emt 0:00:30]} Qd7 {[%emt 0:00:48]} 42. Bg4 {[%emt 0:00:42]} 1-0

[Event "Cracovia Festival-A 2023"]
[Site "Krakow"]
[Date "2023.12.27"]
[Round "1.24"]
[White "Vasynda, Oleksandr"]
[Black "Kulkarni Bhakti"]
[Result "0-1"]
[ECO "A80"]
[WhiteElo "2153"]
[BlackElo "2364"]
[Annotator "RC"]
[PlyCount "76"]
[EventDate "2023.12.24"]
[EventType "swiss"]
[EventCountry "POL"]
[SourceTitle "playchess.com"]
[Source "ChessBase"]
[SourceQuality "1"]
[TimeControl "40/5400+30:1800+30"]

1. d4 {[%emt 0:00:05]} f5 {[%emt 0:00:42]} 2. Nf3 {[%emt 0:00:49]} Nf6 {[%emt 0:00:33]} 3. c4 {[%emt 0:00:15]} e6 {[%emt 0:01:05]} 4. Nc3 {[%emt 0:00:28]} Bb4 {[%emt 0:04:15]} 5. e3 {[%emt 0:02:34]} b6 {[%emt 0:01:10]} 6. Bd3 {[%emt 0:00:41]} Bb7 {[%emt 0:00:05]} 7. O-O {[%emt 0:00:16]} O-O {[%emt 0:01:59]} 8. Nd2 {[%emt 0:04:33]} Qe8 {[%emt 0:07:02]} 9. f3 {[%emt 0:08:39]} e5 {[%emt 0:08:44]} 10. Bxf5 {[%emt 0:05:18]} exd4 {[%emt 0:02:02]} 11. exd4 {[%emt 0:00:01]} Qe3+ {[%emt 0:19:11]} 12. Kh1 {[%emt 0:00:27]} Qxd4 {[%emt 0:00:28]} 13. Nb5 {[%emt 0:06:41]} Qe5 {[%emt 0:02:38]} 14. Bd3 {[%emt 0:05:57]} a6 {[%emt 0:08:25]} 15. Re1 {[%emt 0:11:06]} Qh5 {[%emt 0:06:19]} 16. Nd4 {[%emt 0:03:13]} Bd6 {[%emt 0:05:04]} 17. h3 {[%emt 0:03:19]} Ng4 {[%emt 0:02:26]} 18. Qe2 {[%emt 0:05:12]} Bg3 {[%emt 0:02:31]} 19. Rf1 {[%emt 0:06:45]} Nh2 {[%emt 0:04:15]} 20. Rd1 {[%emt 0:02:51]} c5 {[%emt 0:03:25]} 21. Be4 {[%emt 0:04:42]} Bxe4 {[%emt 0:12:32]} 22. Nxe4 {[%emt 0:00:55]} Bc7 {[%emt 0:00:11]} 23. f4 {[%emt 0:01:41]} Qg6 {[%emt 0:02:27]} 24. Nc2 {[%emt 0:03:31]} Re8 {[%emt 0:02:54]} 25. Qd2 {[%emt 0:01:18]} Nc6 {[%emt 0:01:25]} 26. Ng5 {[%emt 0:01:53]} h6 {[%emt 0:00:26]} 27. Qd5+ {[%emt 0:00:13]} Kh8 {[%emt 0:00:16]} 28. Nf7+ {[%emt 0:00:27]} Kh7 {[%emt 0:00:01]} 29. Na3 {[%emt 0:06:26]} Ne7 {[%emt 0:01:49]} 30. Qd3 {[%emt 0:02:28]} Nf5 {[%emt 0:00:11]} 31. Ne5 {[%emt 0:00:33]} Rxe5 {[%emt 0:00:20]} 32. fxe5 {[%emt 0:03:04]} Bxe5 {[%emt 0:00:13]} 33. Nc2 {[%emt 0:00:39]} Nf1 {[%emt 0:00:26]} 34. Ne3 {[%emt 0:02:27]} N1g3+ {[%emt 0:00:40]} 35. Kg1 {[%emt 0:00:36]} Bd4 {[%emt 0:00:20]} 36. Kh2 {[%emt 0:00:09]} Qd6 {[%emt 0:00:06]} 37. Ng4 {[%emt 0:02:58]} Nf1+ {[%emt 0:00:23]} 38. Kh1 {[%emt 0:00:08]} Qh2+ {[%emt 0:00:08]} 0-1

[Event "Cracovia Festival-A 2023"]
[Site "Krakow"]
[Date "2023.12.28"]
[Round "2.1"]
[White "Lewicki, Miroslaw"]
[Black "Puranik, Abhimanyu"]
[Result "0-1"]
[ECO "B72"]
[WhiteElo "2321"]
[BlackElo "2627"]
[Annotator "ChessBase"]
[PlyCount "70"]
[EventDate "2023.12.24"]
[EventType "swiss"]
[EventCountry "POL"]
[SourceTitle "playchess.com"]
[Source "ChessBase"]
[SourceQuality "1"]
[TimeControl "40/5400+30:1800+30"]

1. e4 {[%emt 0:03:57]} c5 {[%emt 0:00:18]} 2. Nf3 {[%emt 0:00:54]} d6 {[%emt 0:00:05]} 3. d4 {[%emt 0:00:04]} cxd4 {[%emt 0:00:03]} 4. Nxd4 {[%emt 0:00:05]} Nf6 {[%emt 0:00:03]} 5. Nc3 {[%emt 0:00:06]} Nc6 {[%emt 0:00:05]} 6. Be2 {[%emt 0:01:33]} g6 {[%emt 0:00:16]} 7. Be3 {[%emt 0:01:09]} Bg7 {[%emt 0:00:05]} 8. Qd2 {[%emt 0:03:26]} O-O {[%emt 0:00:37]} 9. O-O-O {[%emt 0:00:38]} Ng4 {[%emt 0:01:01]} 10. Bxg4 {[%emt 0:01:06]} Bxg4 {[%emt 0:00:02]} 11. f3 {[%emt 0:00:39]} Be6 {[%emt 0:00:06]} 12. Nxe6 {[%emt 0:01:23]} fxe6 {[%emt 0:01:39]} 13. Bh6 {[%emt 0:00:10]} Bxh6 {[%emt 0:11:09]} 14. Qxh6 {[%emt 0:00:09]} Qa5 {[%emt 0:00:02]} 15. h4 {[%emt 0:01:19]} Qe5 {[%emt 0:00:05]} 16. Ne2 {[%emt 0:04:51]} Rac8 {[%emt 0:03:49]} 17. Kb1 {[%emt 0:01:53]} b5 {[%emt 0:13:54]} 18. Rh3 {[%emt 0:05:17]} Nd8 {[%emt 0:12:22]} 19. Rg3 {[%emt 0:04:01]} Nf7 {[%emt 0:00:03]} 20. Qd2 {[%emt 0:01:46]} Rc5 {[%emt 0:01:51]} 21. f4 {[%emt 0:16:05]} Qxe4 {[%emt 0:02:29]} 22. Re3 {[%emt 0:00:06]} Qxg2 {[%emt 0:02:20]} 23. Rxe6 {[%emt 0:00:11]} Rfc8 {[%emt 0:05:31]} 24. Rxe7 {[%emt 0:02:45]} Rxc2 {[%emt 0:02:39]} 25. Qe3 {[%emt 0:00:39]} Qg4 {[%emt 0:08:41]} 26. a3 {[%emt 0:15:43]} Kf8 {[%emt 0:09:05]} 27. Re1 {[%emt 0:10:04]} Qf5 {[%emt 0:08:19]} 28. Ka2 {[%emt 0:02:58]} Qd5+ {[%emt 0:01:20]} 29. Ka1 {[%emt 0:02:36]} Qc4 {[%emt 0:05:13]} 30. Kb1 {[%emt 0:09:14]} b4 {[%emt 0:02:28]} 31. Re4 {[%emt 0:00:12]} Rxb2+ {[%emt 0:01:08]} 32. Kxb2 {[%emt 0:00:24]} Qc2+ {[%emt 0:00:03]} 33. Ka1 {[%emt 0:00:17]} b3 {[%emt 0:00:05]} 34. Re8+ {[%emt 0:02:56]} Rxe8 {[%emt 0:00:13]} 35. Qxe8+ {[%emt 0:00:04]} Kg7 {[%emt 0:00:03]} 0-1

[Event "Cracovia Festival-A 2023"]
[Site "Krakow"]
[Date "2023.12.28"]
[Round "2.2"]
[White "Gumularz, Szymon"]
[Black "Luczak, Filip"]
[Result "1-0"]
[ECO "A20"]
[WhiteElo "2576"]
[BlackElo "2319"]
[Annotator "ChessBase"]
[PlyCount "73"]
[EventDate "2023.12.24"]
[EventType "swiss"]
[EventCountry "POL"]
[SourceTitle "playchess.com"]
[Source "ChessBase"]
[SourceQuality "1"]
[TimeControl "40/5400+30:1800+30"]

1. c4 {[%emt 0:00:03]} e5 {[%emt 0:00:04]} 2. g3 {[%emt 0:00:08]} c6 {[%emt 0:00:19]} 3. d4 {[%emt 0:00:21]} e4 {[%emt 0:00:04]} 4. c5 {[%emt 0:00:17]} b6 {[%emt 0:02:42]} 5. Nc3 {[%emt 0:00:14]} bxc5 {[%emt 0:02:17]} 6. d5 {[%emt 0:00:05]} cxd5 {[%emt 0:07:41]} 7. Qxd5 {[%emt 0:00:10]} Nc6 {[%emt 0:00:08]} 8. Qxe4+ {[%emt 0:00:13]} Be7 {[%emt 0:02:40]} 9. Bg2 {[%emt 0:00:12]} Nf6 {[%emt 0:01:30]} 10. Qa4 {[%emt 0:00:06]} O-O {[%emt 0:02:33]} 11. Nh3 {[%emt 0:00:15]} Rb8 {[%emt 0:04:05]} 12. O-O {[%emt 0:00:26]} Rb4 {[%emt 0:02:25]} 13. Qd1 {[%emt 0:01:33]} d5 {[%emt 0:04:50]} 14. Nf4 {[%emt 0:06:32]} Rd4 {[%emt 0:02:25]} 15. Qb3 {[%emt 0:01:53]} Na5 {[%emt 0:09:17]} 16. Qc2 {[%emt 0:00:14]} g5 {[%emt 0:02:27]} 17. Nh3 {[%emt 0:13:26]} h6 {[%emt 0:00:06]} 18. f4 {[%emt 0:01:15]} g4 {[%emt 0:00:48]} 19. Nf2 {[%emt 0:00:04]} Nc6 {[%emt 0:11:13]} 20. e3 {[%emt 0:06:46]} Nb4 {[%emt 0:03:00]} 21. Qb1 {[%emt 0:00:07]} Rc4 {[%emt 0:02:08]} 22. a3 {[%emt 0:00:30]} d4 {[%emt 0:05:13]} 23. exd4 {[%emt 0:01:54]} cxd4 {[%emt 0:00:42]} 24. axb4 {[%emt 0:00:06]} dxc3 {[%emt 0:00:17]} 25. bxc3 {[%emt 0:00:03]} Qb6 {[%emt 0:02:41]} 26. Re1 {[%emt 0:03:30]} Rxc3 {[%emt 0:14:58]} 27. Rxe7 {[%emt 0:01:09]} Rd8 {[%emt 0:00:03]} 28. Re1 {[%emt 0:00:14]} Rdd3 {[%emt 0:00:38]} 29. Qa2 {[%emt 0:03:01]} Rxg3 {[%emt 0:04:27]} 30. hxg3 {[%emt 0:01:07]} Rxg3 {[%emt 0:00:02]} 31. Re7 {[%emt 0:00:38]} Be6 {[%emt 0:03:06]} 32. Rxe6 {[%emt 0:03:38]} fxe6 {[%emt 0:00:42]} 33. Qxa7 {[%emt 0:02:52]} Qb5 {[%emt 0:01:37]} 34. Qa6 {[%emt 0:03:08]} Qxb4 {[%emt 0:01:06]} 35. Qxe6+ {[%emt 0:00:07]} Kg7 {[%emt 0:00:02]} 36. Ra7+ {[%emt 0:00:27]} Kg6 {[%emt 0:00:02]} 37. f5+ {[%emt 0:00:21]} 1-0

[Event "Cracovia Festival-A 2023"]
[Site "Krakow"]
[Date "2023.12.28"]
[Round "2.3"]
[White "Berin, Artem"]
[Black "Keinanen, Toivo"]
[Result "0-1"]
[ECO "D31"]
[WhiteElo "2321"]
[BlackElo "2522"]
[Annotator "ChessBase"]
[PlyCount "154"]
[EventDate "2023.12.24"]
[EventType "swiss"]
[EventCountry "POL"]
[SourceTitle "playchess.com"]
[Source "ChessBase"]
[SourceQuality "1"]
[TimeControl "40/5400+30:1800+30"]

1. d4 {[%emt 0:00:03]} d5 {[%emt 0:00:05]} 2. c4 {[%emt 0:00:04]} e6 {[%emt 0:00:03]} 3. Nc3 {[%emt 0:00:05]} Be7 {[%emt 0:00:04]} 4. cxd5 {[%emt 0:01:31]} exd5 {[%emt 0:00:02]} 5. Nf3 {[%emt 0:00:39]} Nf6 {[%emt 0:05:21]} 6. Bg5 {[%emt 0:00:13]} c6 {[%emt 0:05:33]} 7. Qc2 {[%emt 0:02:14]} g6 {[%emt 0:03:22]} 8. e3 {[%emt 0:07:24]} Bf5 {[%emt 0:01:54]} 9. Bd3 {[%emt 0:00:16]} Bxd3 {[%emt 0:00:58]} 10. Qxd3 {[%emt 0:00:07]} Nbd7 {[%emt 0:01:12]} 11. O-O {[%emt 0:11:04]} O-O {[%emt 0:00:54]} 12. Rab1 {[%emt 0:13:01]} a5 {[%emt 0:09:37]} 13. Nd2 {[%emt 0:05:59]} Re8 {[%emt 0:03:37]} 14. Rfc1 {[%emt 0:01:05]} Bd6 {[%emt 0:07:14]} 15. h3 {[%emt 0:03:42]} Qb8 {[%emt 0:01:10]} 16. Ne2 {[%emt 0:08:09]} Nh5 {[%emt 0:04:08]} 17. e4 {[%emt 0:07:39]} Bh2+ {[%emt 0:12:54]} 18. Kh1 {[%emt 0:03:27]} dxe4 {[%emt 0:02:08]} 19. Nxe4 {[%emt 0:00:14]} Nf4 {[%emt 0:00:49]} 20. Bxf4 {[%emt 0:01:45]} Bxf4 {[%emt 0:00:08]} 21. Rd1 {[%emt 0:00:16]} Bh6 {[%emt 0:05:00]} 22. d5 {[%emt 0:05:37]} Bg7 {[%emt 0:02:19]} 23. dxc6 {[%emt 0:01:31]} Ne5 {[%emt 0:00:21]} 24. Qb3 {[%emt 0:01:04]} bxc6 {[%emt 0:06:27]} 25. Qxb8 {[%emt 0:02:22]} Raxb8 {[%emt 0:03:05]} 26. Nd6 {[%emt 0:03:02]} Ng4 {[%emt 0:08:43]} 27. Nxe8 {[%emt 0:00:27]} Nxf2+ {[%emt 0:00:03]} 28. Kg1 {[%emt 0:00:06]} Nxd1 {[%emt 0:00:19]} 29. Nxg7 {[%emt 0:00:21]} Rd8 {[%emt 0:04:10]} 30. Ne8 {[%emt 0:05:50]} Rxe8 {[%emt 0:01:11]} 31. Nd4 {[%emt 0:00:11]} c5 {[%emt 0:05:48]} 32. Rxd1 {[%emt 0:06:35]} Rd8 {[%emt 0:02:41]} 33. Kf2 {[%emt 0:00:11]} cxd4 {[%emt 0:00:15]} 34. Ke2 {[%emt 0:01:28]} Re8+ {[%emt 0:01:32]} 35. Kf3 {[%emt 0:04:54]} Re3+ {[%emt 0:00:53]} 36. Kf2 {[%emt 0:00:06]} Re4 {[%emt 0:00:00]} 37. Kf3 {[%emt 0:02:48]} f5 {[%emt 0:00:31]} 38. Rd3 {[%emt 0:00:07]} Kf7 {[%emt 0:00:58]} 39. Ra3 {[%emt 0:01:59]} Re5 {[%emt 0:01:00]} 40. Ra4 {[%emt 0:00:00]} Rd5 {[%emt 0:00:00]} 41. Ke2 {[%emt 0:06:36]} Ke6 {[%emt 0:07:16]} 42. Kd3 {[%emt 0:00:21]} Ke5 {[%emt 0:01:21]} 43. b4 {[%emt 0:03:28]} axb4 {[%emt 0:02:31]} 44. Rxb4 {[%emt 0:00:05]} Ra5 {[%emt 0:07:04]} 45. a4 {[%emt 0:03:54]} Kf4 {[%emt 0:01:01]} 46. g4 {[%emt 0:01:51]} Kg3 {[%emt 0:01:30]} 47. gxf5 {[%emt 0:03:13]} Rxf5 {[%emt 0:03:19]} 48. Rb7 {[%emt 0:05:25]} h5 {[%emt 0:02:37]} 49. Rb5 {[%emt 0:06:22]} Rf3+ {[%emt 0:04:10]} 50. Kxd4 {[%emt 0:00:07]} Kh4 {[%emt 0:00:38]} 51. a5 {[%emt 0:02:52]} Rxh3 {[%emt 0:02:24]} 52. Ke5 {[%emt 0:00:46]} Rf3 {[%emt 0:02:47]} 53. Rb4+ {[%emt 0:00:44]} Kg5 {[%emt 0:00:52]} 54. Ra4 {[%emt 0:00:17]} Rf5+ {[%emt 0:02:41]} 55. Ke6 {[%emt 0:00:30]} Rf6+ {[%emt 0:00:06]} 56. Kd7 {[%emt 0:03:16]} h4 {[%emt 0:00:51]} 57. a6 {[%emt 0:00:18]} Rf8 {[%emt 0:00:50]} 58. a7 {[%emt 0:00:14]} Ra8 {[%emt 0:00:01]} 59. Ke6 {[%emt 0:00:45]} h3 {[%emt 0:00:26]} 60. Ra2 {[%emt 0:00:31]} Kh4 {[%emt 0:00:55]} 61. Ra4+ {[%emt 0:01:00]} Kh5 {[%emt 0:00:18]} 62. Ra3 {[%emt 0:00:22]} Kg4 {[%emt 0:00:48]} 63. Ra4+ {[%emt 0:00:07]} Kg5 {[%emt 0:00:05]} 64. Ra3 {[%emt 0:00:13]} h2 {[%emt 0:00:53]} 65. Rh3 {[%emt 0:00:30]} Rxa7 {[%emt 0:00:10]} 66. Rxh2 {[%emt 0:00:04]} Kf4 {[%emt 0:00:41]} 67. Rf2+ {[%emt 0:00:31]} Kg3 {[%emt 0:00:20]} 68. Rf8 {[%emt 0:00:16]} g5 {[%emt 0:00:43]} 69. Rg8 {[%emt 0:00:32]} Ra5 {[%emt 0:00:18]} 70. Kf6 {[%emt 0:00:58]} g4 {[%emt 0:00:05]} 71. Ke6 {[%emt 0:00:45]} Kf3 {[%emt 0:00:12]} 72. Rf8+ {[%emt 0:00:49]} Kg2 {[%emt 0:00:03]} 73. Rg8 {[%emt 0:00:04]} g3 {[%emt 0:00:05]} 74. Rg7 {[%emt 0:00:34]} Kf2 {[%emt 0:00:07]} 75. Rf7+ {[%emt 0:00:11]} Kg1 {[%emt 0:00:04]} 76. Rg7 {[%emt 0:00:05]} g2 {[%emt 0:00:05]} 77. Rg8 {[%emt 0:00:03]} Rh5 {[%emt 0:00:07]} 0-1

[Event "Cracovia Festival-A 2023"]
[Site "Krakow"]
[Date "2023.12.28"]
[Round "2.4"]
[White "Yezhel, Valiantsin"]
[Black "Janik, Igor"]
[Result "0-1"]
[ECO "B06"]
[WhiteElo "2311"]
[BlackElo "2514"]
[Annotator "ChessBase"]
[PlyCount "112"]
[EventDate "2023.12.24"]
[EventType "swiss"]
[EventCountry "POL"]
[SourceTitle "playchess.com"]
[Source "ChessBase"]
[SourceQuality "1"]
[TimeControl "40/5400+30:1800+30"]

1. d4 {[%emt 0:00:03]} g6 {[%emt 0:00:06]} 2. e4 {[%emt 0:00:58]} Bg7 {[%emt 0:00:24]} 3. Nf3 {[%emt 0:00:32]} d6 {[%emt 0:00:31]} 4. c3 {[%emt 0:01:10]} Nf6 {[%emt 0:00:42]} 5. Bd3 {[%emt 0:00:18]} O-O {[%emt 0:00:27]} 6. O-O {[%emt 0:00:11]} c5 {[%emt 0:03:00]} 7. dxc5 {[%emt 0:05:36]} dxc5 {[%emt 0:00:08]} 8. h3 {[%emt 0:00:28]} Nc6 {[%emt 0:01:35]} 9. Qe2 {[%emt 0:08:08]} Qc7 {[%emt 0:01:28]} 10. Re1 {[%emt 0:04:51]} Rd8 {[%emt 0:02:42]} 11. e5 {[%emt 0:15:14]} Nd5 {[%emt 0:00:41]} 12. a4 {[%emt 0:02:12]} Na5 {[%emt 0:04:56]} 13. Bc2 {[%emt 0:02:06]} Qb6 {[%emt 0:01:55]} 14. Na3 {[%emt 0:01:55]} Be6 {[%emt 0:09:15]} 15. Ng5 {[%emt 0:01:53]} Nc7 {[%emt 0:00:42]} 16. Nxe6 {[%emt 0:00:36]} Qxe6 {[%emt 0:01:02]} 17. Bf4 {[%emt 0:00:38]} Nd5 {[%emt 0:02:59]} 18. Bg3 {[%emt 0:00:06]} Qb6 {[%emt 0:02:12]} 19. Bd3 {[%emt 0:09:30]} e6 {[%emt 0:00:33]} 20. Nc4 {[%emt 0:00:09]} Nxc4 {[%emt 0:01:33]} 21. Bxc4 {[%emt 0:00:05]} Qc6 {[%emt 0:02:11]} 22. a5 {[%emt 0:04:42]} a6 {[%emt 0:00:16]} 23. f4 {[%emt 0:05:38]} Qc7 {[%emt 0:03:06]} 24. Red1 {[%emt 0:10:54]} Ne7 {[%emt 0:01:22]} 25. Bf2 {[%emt 0:11:18]} Bf8 {[%emt 0:00:45]} 26. Bd3 {[%emt 0:04:06]} Nc6 {[%emt 0:02:32]} 27. b4 {[%emt 0:00:05]} Rd7 {[%emt 0:01:54]} 28. Be4 {[%emt 0:02:24]} Rxd1+ {[%emt 0:03:57]} 29. Rxd1 {[%emt 0:00:11]} cxb4 {[%emt 0:01:56]} 30. Bb6 {[%emt 0:00:02]} Qe7 {[%emt 0:00:06]} 31. c4 {[%emt 0:00:03]} Nxa5 {[%emt 0:03:04]} 32. Rd6 {[%emt 0:03:17]} Nc6 {[%emt 0:00:51]} 33. Qd2 {[%emt 0:00:06]} Rb8 {[%emt 0:03:01]} 34. c5 {[%emt 0:03:09]} Qh4 {[%emt 0:04:25]} 35. Bxc6 {[%emt 0:00:37]} bxc6 {[%emt 0:00:26]} 36. Qxb4 {[%emt 0:00:03]} Bh6 {[%emt 0:08:14]} 37. Rd4 {[%emt 0:01:04]} Qg3 {[%emt 0:00:36]} 38. Qd2 {[%emt 0:00:38]} Kg7 {[%emt 0:00:44]} 39. Qf2 {[%emt 0:01:12]} Qc3 {[%emt 0:00:48]} 40. g3 {[%emt 0:00:00]} Kg8 {[%emt 0:00:00]} 41. Kg2 {[%emt 0:03:47]} Bf8 {[%emt 0:02:53]} 42. Rd7 {[%emt 0:05:41]} Ra8 {[%emt 0:02:19]} 43. Qd4 {[%emt 0:08:04]} Qc2+ {[%emt 0:00:55]} 44. Kf3 {[%emt 0:02:58]} Qh2 {[%emt 0:03:55]} 45. Rc7 {[%emt 0:08:17]} Qh1+ {[%emt 0:02:55]} 46. Kf2 {[%emt 0:00:04]} Qxh3 {[%emt 0:04:31]} 47. Qd7 {[%emt 0:00:07]} Qf5 {[%emt 0:00:01]} 48. Qxc6 {[%emt 0:00:42]} Qc2+ {[%emt 0:00:19]} 49. Kf3 {[%emt 0:00:23]} Qd1+ {[%emt 0:00:07]} 50. Kf2 {[%emt 0:05:00]} Rd8 {[%emt 0:00:09]} 51. Ba5 {[%emt 0:00:09]} Qc2+ {[%emt 0:00:29]} 52. Kf1 {[%emt 0:00:45]} Rd1+ {[%emt 0:02:44]} 53. Be1 {[%emt 0:00:10]} Qd3+ {[%emt 0:00:19]} 54. Kf2 {[%emt 0:00:33]} Rc1 {[%emt 0:00:35]} 55. Rc8 {[%emt 0:02:45]} Rc2+ {[%emt 0:00:10]} 56. Kg1 {[%emt 0:00:04]} Qe3+ {[%emt 0:00:04]} 0-1